[Event "Karel Janecek Open 2025"]
[Site "Prague"]
[Date "2025.03.06"]
[Round "8.10"]
[White "Santamaria Fernandez, Guillermo"]
[Black "Popovic, Dusan"]
[Result "1/2-1/2"]
[Annotator "TA"]
[ECO "B52"]
[WhiteElo "2225"]
[BlackElo "2494"]
[PlyCount "95"]
[EventDate "2025.02.21"]
[EventType "swiss"]
[EventCountry "CZE"]
[SourceTitle "playchess.com"]
[Source "ChessBase"]
[SourceQuality "1"]
[TimeControl "40/5400+30:1800+30"]

{[%evp 24,95,-10,-10,-5,-7,-10,-16,-6,-6,-8,0,21,18,26,11,26,0,0,-18,0,0,0,7,7,6,7,5,10,8,8,0,7,0,5,4,8,8,8,8,8,8,6,0,0,0,0,0,0,0,0,0,0,0,0,0,0,0,0,0,0,0,0,0,0,0,0,0,0,0,0,0,0,0]} 1. e4 {[%emt 0:00:14]} c5 {[%emt 0:00:09]} 2. Nf3 {[%emt 0:00:50]} d6 {[%emt 0:00:07]} 3. Bb5+ {[%emt 0:00:36]} Bd7 {[%emt 0:00:08]} 4. Bxd7+ {[%emt 0:00:06]} Qxd7 {[%emt 0:00:05]} 5. O-O {[%emt 0:00:50]} Nc6 {[%emt 0:00:31]} 6. c3 {[%emt 0:01:00]} Nf6 {[%emt 0:00:27]} 7. Re1 {[%emt 0:00:08]} e6 {[%emt 0:00:17]} 8. d4 {[%emt 0:00:10]} cxd4 {[%emt 0:00:20]} 9. cxd4 {[%emt 0:00:07]} d5 {[%emt 0:00:05]} 10. e5 {[%emt 0:00:07]} Ne4 {[%emt 0:00:04]} 11. a3 {[%emt 0:00:16]} Be7 {[%emt 0:00:38]} 12. Nbd2 {[%emt 0:00:09]} Nxd2 {[%emt 0:00:26]} 13. Bxd2 {[%emt 0:00:06]} O-O {[%emt 0:00:12] B52: Sicilian: Moscow Variation with 3...Bd7.} 14. Rc1 {[%emt 0:00:15]} Rfc8 {[%emt 0:01:12]} 15. h4 {[%emt 0:00:25]} a5 {[%emt 0:03:07]} 16. h5 $146 {[%emt 0:01:27]} (16. Qb3 a4 17. Qd3 f5 18. exf6 Bxf6 19. g4 Rf8 20. g5 Bd8 21. Re2 Rxf3 22. Qxf3 Nxd4 {0-1 Bernhard,J (1769)-Wahlbom,M (2229) Reykjavik op 2016 (1)}) 16... h6 {[%emt 0:10:46]} 17. g4 {[%emt 0:01:49]} f6 {[%emt 0:09:02]} 18. exf6 {[%emt 0:13:48]} Bxf6 {[%emt 0:01:37]} 19. Bf4 {[%emt 0:01:05]} a4 {[%emt 0:16:48]} 20. Rc2 {[%emt 0:12:01]} Na5 {[%emt 0:13:36] The position is equal.} 21. Rce2 {[%emt 0:05:51]} Ra6 {[%emt 0:10:13]} 22. Be5 {[%emt 0:06:59]} Nb3 {[%emt 0:03:50]} 23. Rc2 {[%emt 0:13:42]} Rac6 {[%emt 0:09:36]} 24. Rxc6 {[%emt 0:03:00]} bxc6 {[%emt 0:00:04]} 25. Qd3 {[%emt 0:02:10] Threatening Qa6.} c5 {[%emt 0:02:18]} 26. Bxf6 {[%emt 0:05:37]} gxf6 {[%emt 0:00:11]} 27. Qg6+ {[%emt 0:01:31]} Qg7 {[%emt 0:00:05] [#] Successful Defense Black} 28. Rxe6 {[%emt 0:00:34][%cal Be1e6,Be6d6,Bd6d5][%mdl 32]} Qxg6 {[%emt 0:01:00]} 29. hxg6 {[%emt 0:00:07]} cxd4 $11 {[%emt 0:03:39][%mdl 4096] Endgame KRN-KRN} 30. Rd6 {[%emt 0:02:02][%cal Of3h4]} (30. Rxf6 $2 {too greedy.} d3 31. Rd6 (31. Kf1 $2 d2 $17) 31... d2 32. Nxd2 Nxd2 $19) 30... d3 {[%emt 0:05:49] Threatens to win with ...d2.} 31. Rxd5 {[%emt 0:04:54][%cal Of3h4] [#] Nh4! would now be deadly.} Rc4 {[%emt 0:01:58]} 32. Rxd3 {[%emt 0:03:45]} Rxg4+ {[%emt 0:00:08]} 33. Kf1 {[%emt 0:01:27]} (33. Kh2 Rxg6 34. Rd6 Nc5 35. Nd4) 33... Kg7 {[%emt 0:00:25]} (33... Rxg6 {simplifies} 34. Rd6 Kf7 35. Nd4 Nc5) 34. Nd2 {[%emt 0:01:35]} Nxd2+ {[%emt 0:05:02]} 35. Rxd2 {[%emt 0:00:07]} Kxg6 {[%emt 0:00:04] KR-KR} 36. Rd3 {[%emt 0:01:34]} h5 {[%emt 0:00:51]} 37. b3 {[%emt 0:00:30]} h4 {[%emt 0:01:24]} 38. bxa4 {[%emt 0:00:31]} Rxa4 {[%emt 0:00:06]} 39. Kg2 {[%emt 0:00:35]} Kg5 {[%emt 0:00:23]} 40. Kh3 {[%emt 0:01:50]} f5 {[%emt 0:00:22]} 41. Rb3 {[%emt 0:31:26]} Ra8 {[%emt 0:30:18]} 42. Rf3 $1 {[%emt 0:02:02]} Ra7 {[%emt 0:00:42]} 43. Rc3 {[%emt 0:00:36]} Ra4 {[%emt 0:00:00]} 44. Rb3 {[%emt 0:00:00]} Rc4 {[%emt 0:00:00]} 45. Rd3 {[%emt 0:00:00]} Rc2 {[%emt 0:00:00]} 46. Kg2 {[%emt 0:00:00]} Kg4 {[%emt 0:00:00]} 47. Rb3 {[%emt 0:00:00]} f4 {[%emt 0:00:00]} 48. Rd3 {[%emt 0:00:00] A balanced but interesting game.   Weighted Error Value: White=0.02 (flawless) /Black=0.02 (flawless)   Inaccurate:     	White=1     	---        OK:         	White=15    	Black=12     Best:        	White=1     	Black=2      Strong:       	White=1     	---} 1/2-1/2

[Event "Karel Janecek Open 2025"]
[Site "Prague"]
[Date "2025.03.06"]
[Round "8.11"]
[White "Prokofiev, Valentyn"]
[Black "Noe, Christopher"]
[Result "1/2-1/2"]
[Annotator "TA"]
[ECO "A13"]
[WhiteElo "2420"]
[BlackElo "2511"]
[PlyCount "47"]
[EventDate "2025.02.21"]
[EventType "swiss"]
[EventCountry "CZE"]
[SourceTitle "playchess.com"]
[Source "ChessBase"]
[SourceQuality "1"]
[TimeControl "40/5400+30:1800+30"]

{[%evp 9,47,14,30,10,16,0,15,0,16,0,4,-12,0,0,-3,-56,-47,-75,-73,-72,-58,-53,-53,-53,-54,-56,-18,-21,-14,-19,-25,-35,8,8,10,6,8,0,5,0]} 1. Nf3 {[%emt 0:02:16]} d5 {[%emt 0:00:10]} 2. e3 {[%emt 0:01:01]} c5 {[%emt 0:01:53]} 3. b3 {[%emt 0:00:51]} Nf6 {[%emt 0:00:30]} 4. Bb2 {[%emt 0:00:04]} e6 {[%emt 0:02:39]} 5. c4 {[%emt 0:00:22]} dxc4 {[%emt 0:00:23]} 6. bxc4 {[%emt 0:01:10] A13: English Opening: 1...e6.} b6 {[%emt 0:00:12]} 7. Be2 {[%emt 0:00:40]} Bb7 {[%emt 0:00:07]} 8. O-O {[%emt 0:00:48]} Be7 {[%emt 0:00:07]} 9. Ne5 {[%emt 0:04:19]} O-O {[%emt 0:01:08]} 10. Bf3 {[%emt 0:01:57]} Qc8 {[%emt 0:07:54]} 11. Bxb7 {[%emt 0:12:12]} Qxb7 {[%emt 0:00:21]} 12. Qf3 $146 {[%emt 0:00:16]} (12. f4 $1 $11) (12. d3 Nfd7 13. Qf3 {½-½ Kiik,K (2449)-Groszpeter,A (2495) EU-Cup 17th Panormo 2001 (3.3)}) 12... Qxf3 $15 {[%emt 0:00:35]} 13. gxf3 {[%emt 0:00:04]} Ne8 {[%emt 0:00:52]} 14. f4 {[%emt 0:07:28]} Nd6 {[%emt 0:00:30]} 15. d3 {[%emt 0:01:28]} f6 {[%emt 0:07:02]} 16. Nf3 {[%emt 0:00:09]} Nc6 {[%emt 0:00:08]} 17. Rd1 {[%emt 0:04:37]} Rfd8 {[%emt 0:10:00][%cal Od6c4] [#] and ...Nxc4! should not be overlooked} 18. Nc3 {[%emt 0:02:30]} a6 {[%emt 0:07:10]} 19. a4 {[%emt 0:07:11]} Nb4 {[%emt 0:05:36]} 20. Kf1 {[%emt 0:02:39]} b5 {[%emt 0:10:04]} 21. axb5 {[%emt 0:19:06] The position is equal.} axb5 {[%emt 0:00:30]} 22. Rxa8 {[%emt 0:05:23]} Rxa8 {[%emt 0:00:03]} 23. cxb5 {[%emt 0:00:14]} Rb8 {[%emt 0:05:17]} 24. Ke2 {[%emt 0:05:19] Weighted Error Value: White=0.10 (very precise) /Black=0.10 (very precise)   Mistake:       	White=1     	---        Inaccurate:     	White=1     	Black=2      OK:         	White=6     	Black=4      Best:        	---       	Black=1} 1/2-1/2

[Event "Karel Janecek Open 2025"]
[Site "Prague"]
[Date "2025.03.06"]
[Round "8.12"]
[White "Poetsch, Hagen"]
[Black "Eren, Ataberk"]
[Result "1/2-1/2"]
[Annotator "ChessBase"]
[ECO "C58"]
[WhiteElo "2482"]
[BlackElo "2402"]
[PlyCount "104"]
[EventDate "2025.02.21"]
[EventType "swiss"]
[EventCountry "CZE"]
[SourceTitle "playchess.com"]
[Source "ChessBase"]
[SourceQuality "1"]
[TimeControl "40/5400+30:1800+30"]

1. e4 {[%emt 0:00:02]} e5 {[%emt 0:07:27]} 2. Nf3 {[%emt 0:00:09]} Nc6 {[%emt 0:00:05]} 3. Bc4 {[%emt 0:04:32]} Nf6 {[%emt 0:00:09]} 4. Ng5 {[%emt 0:00:07]} d5 {[%emt 0:00:14]} 5. exd5 {[%emt 0:00:05]} Na5 {[%emt 0:00:04]} 6. Bb5+ {[%emt 0:00:06]} c6 {[%emt 0:00:04]} 7. dxc6 {[%emt 0:00:05]} bxc6 {[%emt 0:00:02]} 8. Bd3 {[%emt 0:00:12]} Nd5 {[%emt 0:00:16]} 9. Nf3 {[%emt 0:03:58]} Bd6 {[%emt 0:01:13]} 10. O-O {[%emt 0:00:07]} O-O {[%emt 0:00:06]} 11. Re1 {[%emt 0:00:05]} f5 {[%emt 0:00:04]} 12. Nxe5 {[%emt 0:00:05]} Qf6 {[%emt 0:00:03]} 13. Nf3 {[%emt 0:00:07]} g5 {[%emt 0:00:04]} 14. c4 {[%emt 0:00:20]} Nf4 {[%emt 0:00:10]} 15. Bf1 {[%emt 0:00:04]} g4 {[%emt 0:00:09]} 16. c5 {[%emt 0:00:36]} gxf3 {[%emt 0:05:04]} 17. cxd6 {[%emt 0:06:46]} fxg2 {[%emt 0:00:09]} 18. Bxg2 {[%emt 0:02:22]} Nd3 {[%emt 0:05:17]} 19. Re3 {[%emt 0:03:48]} Ba6 {[%emt 0:00:12]} 20. Nc3 {[%emt 0:09:09]} f4 {[%emt 0:01:09]} 21. Qg4+ {[%emt 0:05:57]} Kh8 {[%emt 0:00:12]} 22. Re7 {[%emt 0:04:40]} Rg8 {[%emt 0:09:39]} 23. Ne4 {[%emt 0:11:01]} Qh6 {[%emt 0:07:38]} 24. Qf5 {[%emt 0:06:06]} Nc4 {[%emt 0:45:11]} 25. Qf6+ {[%emt 0:24:17]} Qxf6 {[%emt 0:00:07]} 26. Nxf6 {[%emt 0:00:05]} Rg7 {[%emt 0:00:08]} 27. Rxg7 {[%emt 0:00:25]} Kxg7 {[%emt 0:00:04]} 28. Bxc6 {[%emt 0:00:33]} Rd8 {[%emt 0:00:34]} 29. Ne8+ {[%emt 0:01:15]} Kf7 {[%emt 0:03:55]} 30. d7 {[%emt 0:03:40]} Nce5 {[%emt 0:00:41]} 31. Bd5+ {[%emt 0:02:42]} Ke7 {[%emt 0:01:59]} 32. Nc7 {[%emt 0:00:10]} Rxd7 {[%emt 0:00:50]} 33. Nxa6 {[%emt 0:00:08]} Rxd5 {[%emt 0:00:05]} 34. b3 {[%emt 0:04:44]} Ra5 {[%emt 0:01:03]} 35. Nc5 {[%emt 0:00:28]} Kf6 {[%emt 0:08:01]} 36. Nxd3 {[%emt 0:03:49]} Nxd3 {[%emt 0:00:04]} 37. f3 {[%emt 0:00:10]} Re5 {[%emt 0:05:10]} 38. Ba3 {[%emt 0:00:12]} Re2 {[%emt 0:00:08]} 39. Bd6 {[%emt 0:03:28]} Kg5 {[%emt 0:00:14]} 40. Bb8 {[%emt 0:01:56]} a6 {[%emt 0:00:32]} 41. a4 {[%emt 0:11:25]} Kh4 {[%emt 0:03:44]} 42. b4 {[%emt 0:00:32]} Kh3 {[%emt 0:03:17]} 43. b5 {[%emt 0:01:55]} Rg2+ {[%emt 0:05:43]} 44. Kf1 {[%emt 0:00:08]} Kxh2 {[%emt 0:03:22]} 45. Ba7 {[%emt 0:00:27]} axb5 {[%emt 0:06:23]} 46. axb5 {[%emt 0:05:43]} Kg3 {[%emt 0:03:12]} 47. Bd4 {[%emt 0:04:09]} Rxd2 {[%emt 0:04:53]} 48. Rb1 {[%emt 0:05:29]} Kxf3 {[%emt 0:01:15]} 49. b6 {[%emt 0:00:07]} Nb4 {[%emt 0:00:16]} 50. Rb3+ {[%emt 0:01:56]} Nd3 {[%emt 0:00:04]} 51. Rb1 {[%emt 0:00:03]} Nb4 {[%emt 0:00:04]} 52. Rb3+ {[%emt 0:03:05]} Nd3 {[%emt 0:00:03]} 1/2-1/2

[Event "Karel Janecek Open 2025"]
[Site "Prague"]
[Date "2025.03.06"]
[Round "8.14"]
[White "Eret, Matous"]
[Black "Kraus, Tomas"]
[Result "0-1"]
[Annotator "ChessBase"]
[ECO "A12"]
[WhiteElo "2304"]
[BlackElo "2451"]
[PlyCount "102"]
[EventDate "2025.02.21"]
[EventType "swiss"]
[EventCountry "CZE"]
[SourceTitle "playchess.com"]
[Source "ChessBase"]
[SourceQuality "1"]
[TimeControl "40/5400+30:1800+30"]

1. c4 {[%emt 0:00:03]} c6 {[%emt 0:00:41]} 2. Nf3 {[%emt 0:00:49]} Nf6 {[%emt 0:01:00]} 3. g3 {[%emt 0:00:34]} d5 {[%emt 0:00:27]} 4. b3 {[%emt 0:01:20]} dxc4 {[%emt 0:00:07]} 5. bxc4 {[%emt 0:00:10]} e5 {[%emt 0:00:05]} 6. Bg2 {[%emt 0:23:46]} Bd6 {[%emt 0:01:07]} 7. Nc3 {[%emt 0:02:38]} Na6 {[%emt 0:02:43]} 8. O-O {[%emt 0:01:29]} O-O {[%emt 0:00:25]} 9. d3 {[%emt 0:01:13]} Re8 {[%emt 0:03:06]} 10. Bg5 {[%emt 0:02:11]} h6 {[%emt 0:02:31]} 11. Bxf6 {[%emt 0:00:20]} Qxf6 {[%emt 0:00:06]} 12. Ne4 {[%emt 0:01:34]} Qe7 {[%emt 0:00:07]} 13. Nxd6 {[%emt 0:00:51]} Qxd6 {[%emt 0:00:05]} 14. Nd2 {[%emt 0:01:09]} Bg4 {[%emt 0:02:25]} 15. Ne4 {[%emt 0:04:45]} Qe7 {[%emt 0:02:25]} 16. h3 {[%emt 0:03:27]} Bh5 {[%emt 0:01:39]} 17. Qd2 {[%emt 0:14:34]} Rad8 {[%emt 0:04:39]} 18. Qb2 {[%emt 0:04:00]} f5 {[%emt 0:07:30]} 19. Nc3 {[%emt 0:00:08]} Nc5 {[%emt 0:01:06]} 20. a4 {[%emt 0:08:37]} e4 {[%emt 0:05:54]} 21. g4 {[%emt 0:04:20]} fxg4 {[%emt 0:07:02]} 22. hxg4 {[%emt 0:02:46]} Bxg4 {[%emt 0:07:54]} 23. Nxe4 {[%emt 0:02:17]} Nxe4 {[%emt 0:01:31]} 24. dxe4 {[%emt 0:01:57]} Qg5 {[%emt 0:04:02]} 25. Ra3 {[%emt 0:02:01]} Rd2 {[%emt 0:03:17]} 26. Qxb7 {[%emt 0:00:33]} Bxe2 {[%emt 0:00:47]} 27. Qxc6 {[%emt 0:03:22]} Rf8 {[%emt 0:02:51]} 28. Qe6+ {[%emt 0:01:20]} Kh8 {[%emt 0:02:47]} 29. Rg3 {[%emt 0:06:06]} Qc5 {[%emt 0:02:05]} 30. Rb1 {[%emt 0:01:52]} Bxc4 {[%emt 0:10:57]} 31. Qg6 {[%emt 0:03:01]} Qxf2+ {[%emt 0:01:59]} 32. Kh2 {[%emt 0:00:05]} Rd7 {[%emt 0:05:06]} 33. Rc1 {[%emt 0:00:39]} Bg8 {[%emt 0:01:06]} 34. Rf1 {[%emt 0:01:49]} Qc5 {[%emt 0:00:01]} 35. Rf5 {[%emt 0:01:29]} Qe7 {[%emt 0:03:29]} 36. Rxf8 {[%emt 0:00:40]} Qxf8 {[%emt 0:00:00]} 37. Rf3 {[%emt 0:00:18]} Qe7 {[%emt 0:00:56]} 38. Qg4 {[%emt 0:00:35]} Rd4 {[%emt 0:03:04]} 39. Rc3 {[%emt 0:00:33]} Rxa4 {[%emt 0:03:36]} 40. Rc8 {[%emt 0:00:36]} Ra5 {[%emt 0:02:25]} 41. Qf4 {[%emt 0:03:11]} Re5 {[%emt 0:06:37]} 42. Qf8 {[%emt 0:03:30]} Qxf8 {[%emt 0:04:26]} 43. Rxf8 {[%emt 0:00:10]} g6 {[%emt 0:03:27]} 44. Kg3 {[%emt 0:01:28]} Kg7 {[%emt 0:01:36]} 45. Ra8 {[%emt 0:00:15]} Re7 {[%emt 0:00:45]} 46. Kf4 {[%emt 0:02:12]} g5+ {[%emt 0:02:04]} 47. Ke3 {[%emt 0:00:05]} h5 {[%emt 0:00:40]} 48. Rb8 {[%emt 0:01:06]} Be6 {[%emt 0:01:42]} 49. Rb5 {[%emt 0:01:28]} Kg6 {[%emt 0:01:11]} 50. e5 {[%emt 0:01:35]} h4 {[%emt 0:01:08]} 51. Rb8 {[%emt 0:00:55]} Kf5 {[%emt 0:02:29]} 0-1

[Event "Karel Janecek Open 2025"]
[Site "Prague"]
[Date "2025.03.06"]
[Round "8.15"]
[White "Chittka, Julius"]
[Black "Neuman, Petr"]
[Result "1/2-1/2"]
[Annotator "TA"]
[ECO "D02"]
[WhiteElo "2313"]
[BlackElo "2436"]
[PlyCount "65"]
[EventDate "2025.02.21"]
[EventType "swiss"]
[EventCountry "CZE"]
[SourceTitle "playchess.com"]
[Source "ChessBase"]
[SourceQuality "1"]
[TimeControl "40/5400+30:1800+30"]

{[%evp 9,65,-9,18,11,18,16,41,10,28,28,31,23,21,19,25,20,21,10,6,10,29,18,27,6,8,19,12,8,27,17,8,0,16,21,30,26,42,27,82,53,130,45,46,39,40,44,35,43,43,48,76,54,53,41,40,39,35,34]} 1. d4 {[%emt 0:00:04]} d5 {[%emt 0:08:20]} 2. Nf3 {[%emt 0:00:14]} Nf6 {[%emt 0:00:06]} 3. Bf4 {[%emt 0:00:12]} c5 {[%emt 0:00:10]} 4. e3 {[%emt 0:00:08]} Nc6 {[%emt 0:00:07]} 5. Nbd2 {[%emt 0:00:12]} cxd4 {[%emt 0:00:06]} 6. exd4 {[%emt 0:00:22] D02: 1 d4 d5 2 Nf3 sidelines, including 2...Nf6 3 g3 and 2...Nf6 3 Bf4.} a6 {[%emt 0:00:05]} 7. c3 {[%emt 0:02:37]} Bg4 {[%emt 0:00:08]} 8. h3 {[%emt 0:05:48]} Bxf3 {[%emt 0:00:04]} 9. Nxf3 {[%emt 0:00:18]} e6 {[%emt 0:00:08]} 10. Bd3 {[%emt 0:02:01]} Bd6 {[%emt 0:00:03]} 11. Qd2 $146 {[%emt 0:02:49]} (11. Bxd6 Qxd6 12. O-O O-O 13. Qe2 Nd7 14. Rae1 Rae8 15. Ne5 Ndxe5 16. dxe5 Qc5 17. Kh1 {½-½ Kharlov,A (2510)-Romanov,E (2598) Chigorin Memorial 18th 2010 (8)}) 11... Bxf4 {[%emt 0:01:12]} 12. Qxf4 {[%emt 0:00:06]} Qb8 {[%emt 0:00:27]} 13. Qe3 {[%emt 0:03:35]} O-O {[%emt 0:00:20]} 14. O-O {[%emt 0:00:28]} Re8 {[%emt 0:00:06]} 15. Rfe1 {[%emt 0:03:16]} b5 {[%emt 0:02:13]} 16. a3 {[%emt 0:06:52]} Na5 {[%emt 0:01:12]} 17. Ne5 {[%emt 0:02:12]} Nc4 {[%emt 0:00:15]} 18. Qe2 {[%emt 0:00:22]} Nxe5 {[%emt 0:03:20] Successful Defense Black} 19. dxe5 {[%emt 0:00:41]} Nd7 {[%emt 0:00:05]} 20. Rad1 {[%emt 0:09:54]} Qc7 {[%emt 0:02:06]} 21. h4 {[%emt 0:01:41][%cal Bh3h4,Bh4h5][%mdl 32]} Reb8 {[%emt 0:00:41]} 22. h5 {[%emt 0:03:59]} h6 {[%emt 0:04:38]} 23. Bb1 {[%emt 0:12:54]} a5 {[%emt 0:00:37]} (23... Rc8 $11) 24. Rd4 $16 {[%emt 0:04:43]} Rb6 {[%emt 0:01:32] [#]} (24... Qd8 $14) 25. Rg4 {[%emt 0:02:50] White is more active.} ({Better is} 25. Qd3 $1 $16 {[%cal Rd3h7] Qh7+ would now be deadly.} f5 26. Rxd5) 25... f5 $14 {[%emt 0:00:24]} 26. exf6 {[%emt 0:01:56] White attacks} Nxf6 {[%emt 0:00:05]} 27. Rg3 {[%emt 0:04:19]} b4 {[%emt 0:03:46]} 28. axb4 {[%emt 0:04:09]} axb4 {[%emt 0:00:04]} 29. cxb4 {[%emt 0:00:43]} Rab8 {[%emt 0:02:33][%cal Oc7c4]} 30. b5 {[%emt 0:09:00]} e5 {[%emt 0:05:38] White is slightly better.} 31. Qxe5 {[%emt 0:06:49]} Qxe5 {[%emt 0:00:05]} 32. Rxe5 {[%emt 0:00:05]} Rxb5 {[%emt 0:00:05]} 33. Bg6 {[%emt 0:08:12] Weighted Error Value: White=0.10 (very precise) /Black=0.13 (very precise)   Mistake:       	White=1     	Black=2      Inaccurate:     	White=1     	Black=1      OK:         	White=7     	Black=9      Best:        	---       	Black=1} 1/2-1/2

[Event "Karel Janecek Open 2025"]
[Site "Prague"]
[Date "2025.03.07"]
[Round "9.1"]
[White "Sofronie, Iulian"]
[Black "Nyzhnyk, Illya"]
[Result "1/2-1/2"]
[Annotator "TA"]
[ECO "A45"]
[WhiteElo "2380"]
[BlackElo "2569"]
[PlyCount "64"]
[EventDate "2025.02.21"]
[EventType "swiss"]
[EventCountry "CZE"]
[SourceTitle "playchess.com"]
[Source "ChessBase"]
[SourceQuality "1"]
[TimeControl "40/5400+30:1800+30"]

{[%evp 9,64,-23,-17,-31,-4,-7,0,0,10,0,0,0,0,0,0,-25,0,0,0,8,9,14,16,-8,0,-34,-39,-36,-40,-32,-38,-44,-20,-25,0,-27,-26,-28,-27,-25,-24,-25,0,0,0,0,0,0,36,27,14,12,78,25,43,29,33]} 1. d4 {[%emt 0:00:04]} Nf6 {[%emt 0:00:12]} 2. Bf4 {[%emt 0:00:30]} b6 {[%emt 0:00:05]} 3. Nd2 {[%emt 0:00:29]} Bb7 {[%emt 0:00:18]} 4. e3 {[%emt 0:00:05]} g6 {[%emt 0:01:36]} 5. h4 {[%emt 0:03:30]} d6 {[%emt 0:04:12]} 6. Ngf3 {[%emt 0:03:17] A45: Trompowsky Attack.} Nbd7 {[%emt 0:02:34]} 7. Bc4 {[%emt 0:02:50][%cal Oh4h5]} h6 $146 {[%emt 0:10:16]} ({Predecessor:} 7... e6 8. Qe2 a6 9. e4 Bg7 10. Bd3 Qe7 11. O-O-O e5 12. dxe5 dxe5 13. Be3 Ng4 {1-0 Xu,X (2608)-Wagner,D (2598) Titled Tuesday intern op 18th Jul Early blitz 2023 (4)}) 8. Qe2 {[%emt 0:01:09] The position is equal.} Bg7 {[%emt 0:03:53]} 9. e4 {[%emt 0:09:03]} e5 {[%emt 0:00:29]} 10. dxe5 {[%emt 0:01:13]} Nh5 {[%emt 0:00:13][%csl LRe5,LRf4]} 11. Be3 {[%emt 0:09:07] [#] Threatens to win with g4.} dxe5 {[%emt 0:00:21]} 12. Ba6 {[%emt 0:09:08]} Qc8 {[%emt 0:02:39]} 13. Bxb7 {[%emt 0:03:36]} Qxb7 {[%emt 0:00:14]} 14. O-O-O {[%emt 0:05:52]} Nhf6 {[%emt 0:01:20]} 15. Rhe1 {[%emt 0:05:56]} Rd8 {[%emt 0:10:46][%cal Oe8g8]} 16. Nc4 {[%emt 0:09:26]} O-O {[%emt 0:13:59]} 17. Ncxe5 {[%emt 0:01:12]} Nxe5 {[%emt 0:00:20]} 18. Nxe5 {[%emt 0:00:09]} Qxe4 {[%emt 0:00:38]} 19. Rxd8 {[%emt 0:06:50]} Rxd8 {[%emt 0:01:49]} 20. f4 {[%emt 0:00:20]} Nd5 {[%emt 0:15:53]} 21. Bd2 {[%emt 0:04:52]} Qa4 {[%emt 0:00:09]} (21... Qxe2 {simplifies} 22. Rxe2 Ne7 23. g4 f6) 22. Qc4 {[%emt 0:03:57]} Qxc4 {[%emt 0:00:47]} 23. Nxc4 {[%emt 0:00:05]} h5 {[%emt 0:00:03]} 24. g3 {[%emt 0:00:50]} Kf8 {[%emt 0:02:02]} 25. c3 {[%emt 0:02:41]} c5 {[%emt 0:02:17]} 26. Kc2 {[%emt 0:00:16]} Ne7 {[%emt 0:01:07]} 27. Ne3 {[%emt 0:00:09]} Rd6 {[%emt 0:00:19]} 28. a4 {[%emt 0:00:25]} Ke8 {[%emt 0:00:42]} 29. f5 {[%emt 0:04:09]} Kd7 {[%emt 0:00:04]} (29... gxf5 30. Nxf5 Rxd2+ 31. Kxd2 $18) 30. Nc4 {[%emt 0:00:46]} Rc6 {[%emt 0:01:42] [#]} (30... Rd5 $11 {remains equal.}) 31. fxg6 {[%emt 0:00:15] White is more active.} ({Better is} 31. Bh6 $1 $16 {[%cal Rh6g7]} Bxh6 32. Ne5+ Kc7 33. Nxc6 (33. Rd1 $2 Nxf5 34. Rd7+ Kc8 $19) 33... Nxc6 34. fxg6 fxg6 35. Re6) 31... Nxg6 {[%emt 0:00:16]} 32. Bg5 {[%emt 0:04:48]} f6 {[%emt 0:05:40] Weighted Error Value: White=0.08 (flawless) /Black=0.12 (very precise)   Mistake:       	White=1     	Black=1      Inaccurate:     	White=2     	Black=3      OK:         	White=13    	Black=8      Best:        	---       	Black=2} 1/2-1/2